bitfinex/quotes_ETHUSD_20220111
["timestamp","ask_amount","ask_price","bid_price","bid_amount"]
[1641870881328,0.00337549,3108.8,3108.5,0.0073895]
[1641870881931,5.1933,3108.9,3108.4,0.00795792]
[1641870882532,5.1933,3108.9,3108.4,1.00795792]
[1641870882731,5.1933,3108.9,3108.4,0.00795792]
[1641870882930,5.1933,3108.9,3108.5,0.0073895]
[1641870883134,5.1933,3108.9,3108.6,0.0804]
[1641870883332,5.1933,3108.9,3108.5,0.0877895]
[1641870883533,5.1933,3108.9,3108.7,0.00625265]
[1641870883737,5.1933,3108.9,3108.6,0.00682108]
[1641870884182,5.1933,3108.9,3108.5,0.0073895]
[1641870884382,5.1933,3108.9,3108.4,0.00795792]
[1641870885583,5.1933,3108.9,3108.4,0.46895792]
[1641870885984,5.1933,3108.9,3108.5,0.0073895]
[1641870886985,5.19667623,3108.9,3108.5,0.0073895]
[1641870888126,5.48615871,3108.9,3108.5,0.0073895]
[1641870889328,3.6231071,3108.8,3108.5,0.0073895]
[1641870889729,6.35810114,3108.8,3108.5,0.0073895]
[1641870889930,6.35810114,3108.8,3108.1,0.00966319]
[1641870890331,2.73499404,3108.7,3108.1,0.00966319]
[1641870890729,3.71012879,3108.6,3108.1,0.00966319]
[1641870890930,2.73499404,3108.7,3108.1,0.00966319]
[1641870891883,0.00337475,3108.6,3108.1,0.00966319]
[1641870894090,0.00337475,3108.6,3108.2,0.08042]
[1641870894485,0.00337475,3108.6,3108.3,0.00852635]
[1641870895143,2.72196879,3108.8,3108.3,0.00852635]
[1641870895734,2.72196879,3108.8,3108.2,0.00909477]
[1641870895934,2.72196879,3108.8,3108.1,0.09008319]
[1641870896334,2.72196879,3108.8,3108.2,0.00909477]
[1641870896534,2.72196879,3108.8,3108.2,0.77009477]
[1641870896737,2.72196879,3108.8,3108.2,1.07009477]
[1641870896933,2.72196879,3108.8,3108.3,0.00852635]
[1641870899678,6.44208134,3108.8,3108.3,0.00852635]
[1641870899879,2.72196879,3108.8,3108.3,0.00852635]
[1641870902481,2.72196879,3108.8,3108.4,0.08042]
[1641870902739,2.72196879,3108.8,3108.3,0.08894635]
[1641870902938,2.72196879,3108.8,3108.5,0.0073895]
[1641870903141,2.72196879,3108.8,3108.4,0.00795792]
[1641870903340,2.80238879,3108.8,3108.4,0.00795792]
[1641870903541,2.80238879,3108.8,3108.3,0.00852635]
[1641870903741,0.08042,3108.7,3108.3,0.00852635]
[1641870903940,2.72196879,3108.8,3108.3,0.00852635]
[1641870904239,2.72196879,3108.8,3108.1,0.00966319]
[1641870904640,5.48278248,3108.9,3108.1,0.00966319]
[1641870905239,5.48278248,3108.9,3108.2,0.461]
[1641870905447,5.48278248,3108.9,3108.3,3.84319425]
[1641870905448,5.1933,3108.9,3108.3,3.84319425]
[1641870905643,0.08042,3109.0,3108.4,1.461]
[1641870905839,0.08042,3109.0,3108.5,0.0804]
[1641870906039,0.08042,3109.0,3108.6,0.461]
[1641870906241,0.08042,3109.0,3108.7,0.0804]
[1641870906489,0.08042,3109.0,3108.8,0.461]
[1641870906689,0.08042,3109.0,3108.8,0.361]
[1641870906889,0.08042,3109.0,3108.9,0.00511581]
[1641870907094,0.08042,3109.0,3108.9,0.46611581]
[1641870907491,3.6991695,3109.5,3108.9,0.46611581]
[1641870907794,0.05490522,3109.5,3109.0,0.00454738]
[1641870908192,1.52223705,3109.5,3109.0,0.00454738]
[1641870908792,0.05490522,3109.5,3109.0,0.00454738]
[1641870909196,6.76194321,3109.6,3109.1,0.461]
[1641870909496,0.1749238,3109.2,3109.1,1.86495]
[1641870909697,0.1749238,3109.2,3109.1,1.81495]
[1641870909892,0.1749238,3109.2,3109.1,1.81892896]
[1641870910333,0.1749238,3109.2,3109.1,0.99822168]
[1641870911836,0.1749238,3109.2,3109.1,1.00616754]
[1641870912239,0.1749238,3109.2,3109.1,0.47292482]
[1641870914986,0.3498476,3109.2,3109.1,0.77292482]
[1641870915184,0.3498476,3109.2,3109.1,1.07292482]
[1641870915387,3.08443025,3109.2,3109.1,1.07292482]
[1641870915783,3.08443025,3109.2,3109.1,0.77292482]
[1641870915987,0.3498476,3109.2,3109.1,1.07292482]
[1641870916183,0.3498476,3109.2,3109.1,1.42402482]
[1641870916787,3.06257624,3109.2,3109.1,2.42402482]
[1641870916986,2.90950645,3109.2,3109.1,2.50441482]
[1641870917385,3.06257624,3109.2,3109.1,2.50441482]
[1641870918030,3.06257624,3109.2,3109.1,3.30830482]
[1641870918636,1.61784321,3110.0,3109.1,6.75441482]
[1641870918834,1.61784321,3110.0,3109.5,1.2788877]
[1641870919035,7.08444321,3110.2,3109.6,0.54139]
[1641870919240,7.08444321,3110.2,3109.6,0.84252684]
[1641870919539,0.00170527,3110.1,3109.6,0.84252684]
[1641870919838,1.61784321,3110.2,3109.8,5.00362]
[1641870920037,1.61784321,3110.4,3109.9,0.54137]
[1641870920239,1.61784321,3110.4,3109.9,1.84250684]
[1641870920437,1.61954849,3110.4,3109.9,1.84250684]
[1641870920839,1.7054172,3110.6,3110.1,5.65]
[1641870921040,1.5989841,3110.7,3110.2,5.90702018]
[1641870921240,1.5989841,3110.7,3110.2,2.64603685]
[1641870921481,1.5989841,3110.7,3110.2,2.94603685]
[1641870921482,1.60068937,3110.7,3110.2,2.94603685]
[1641870921884,0.00170527,3110.7,3110.2,2.94603685]
[1641870922394,0.00170527,3110.7,3110.5,3.05939829]
[1641870922587,0.00170527,3110.7,3110.6,1.461]
[1641870922788,5.0546,3110.8,3110.6,1.461]
[1641870922789,7.9163,3111.6,3110.7,2.75]
[1641870922985,5.387715,3111.5,3110.8,1.56442]
[1641870923184,0.00227369,3111.1,3110.8,3.35692]
[1641870923584,0.00170527,3111.0,3110.8,2.5535]
[1641870923783,0.00170527,3111.0,3110.9,1.60681]
[1641870923985,5.387715,3111.5,3110.9,2.36781]
[1641870924187,5.387715,3111.5,3110.9,3.36781]
[1641870924386,0.00227369,3111.1,3110.9,3.36781]
[1641870924585,0.00227369,3111.1,3110.9,6.88120175]
[1641870924793,5.387715,3111.5,3111.0,3.40044157]
[1641870924985,5.387715,3111.5,3111.1,0.761]
[1641870925241,5.387715,3111.5,3111.1,5.31527997]
[1641870925242,5.2588,3111.5,3111.1,5.31527997]
[1641870925443,5.2588,3111.5,3111.1,5.33937541]
[1641870925635,0.00397896,3111.4,3111.1,5.33937541]
[1641870926035,0.00341054,3111.3,3111.2,5.764]
[1641870926236,0.00341054,3111.3,3111.2,6.30535]
[1641870926434,0.00341054,3111.3,3111.2,7.60535]
[1641870926634,5.21221054,3111.5,3111.3,0.3]
[1641870926839,5.21221054,3111.5,3111.4,0.461]
[1641870927040,5.21221054,3111.5,3111.4,0.761]
[1641870927337,5.21334738,3111.5,3111.4,0.761]
[1641870928335,5.21334738,3111.5,3111.4,4.11597313]
[1641870928535,5.21334738,3111.5,3111.4,1.761]
[1641870929182,5.21334738,3111.5,3111.4,0.761]
[1641870929384,5.21334738,3111.5,3111.4,1.761]
[1641870929783,5.21334738,3111.5,3111.4,4.11244959]
[1641870929983,5.21334738,3111.5,3111.4,5.11244959]
[1641870930184,0.00113684,3111.5,3111.4,5.11244959]
[1641870931484,0.00113684,3111.5,3111.4,1.761]
[1641870931887,0.00113684,3111.5,3111.4,1.76922488]
[1641870932183,0.00113684,3111.5,3111.4,0.76922488]
[1641870932386,0.00113684,3111.5,3111.4,1.76922488]
[1641870933037,0.00113684,3111.5,3111.4,0.76922488]
[1641870933239,0.00113684,3111.5,3111.4,5.11306151]
[1641870934441,0.00113684,3111.5,3111.4,5.89936151]
[1641870934839,0.00113684,3111.5,3111.4,5.97969151]
[1641870937184,0.00113684,3111.5,3111.4,5.89936151]
[1641870938184,0.29713333,3111.8,3111.5,1.49141155]
[1641870938185,0.24827017,3111.8,3111.5,1.49141155]
[1641870938387,0.24827017,3111.8,3111.6,0.461]
[1641870938588,0.00113685,3111.7,3111.6,0.761]
[1641870942135,0.00113685,3111.7,3111.6,0.76920975]
[1641870942534,0.00113685,3111.7,3111.6,1.76920975]
[1641870942736,0.00113685,3111.7,3111.6,5.26293696]
[1641870942937,0.00113685,3111.7,3111.6,1.76920975]
[1641870943136,0.00113685,3111.7,3111.6,0.76920975]
[1641870945590,0.00113685,3111.7,3111.6,4.12600563]
[1641870945788,0.00113685,3111.7,3111.6,1.76920975]
[1641870946090,0.00113685,3111.7,3111.6,0.76920975]
[1641870947289,0.00113685,3111.7,3111.6,1.76920975]
[1641870947490,0.00113685,3111.7,3111.6,5.29816709]
[1641870947738,0.00113685,3111.7,3111.6,1.76920975]
[1641870947942,0.00113685,3111.7,3111.6,5.06902569]
[1641870948339,0.00113685,3111.7,3111.6,1.76920975]
[1641870948537,0.00113685,3111.7,3111.6,0.76920975]
[1641870949140,0.00113685,3111.7,3111.6,1.57250975]
[1641870951144,0.00113685,3111.7,3111.6,2.57250975]
[1641870951601,0.00113685,3111.7,3111.6,0.76920975]
[1641870951804,0.00113685,3111.7,3111.6,1.76920975]
[1641870952201,0.00113685,3111.7,3111.6,0.76920975]
[1641870954708,1.0,3112.0,3111.9,0.05059298]
[1641870954905,1.0,3112.0,3111.9,0.461]
[1641870955946,0.95,3112.0,3111.9,0.461]
[1641870956348,0.95,3112.0,3111.9,0.761]
[1641870956647,0.95,3112.0,3111.9,1.061]
[1641870956851,0.95,3112.0,3111.9,1.06918705]
[1641870958894,3.68267665,3112.0,3111.9,1.06918705]
[1641870959793,50.0,3112.1,3111.9,1.06918705]
[1641870959990,50.0,3112.1,3112.0,0.08032]
[1641870960191,50.0,3112.1,3112.0,4.94132]
[1641870960192,37.1510375,3112.1,3112.0,4.94132]
[1641870960392,29.79646646,3112.1,3112.0,12.01798087]
[1641870960591,29.79646646,3112.1,3112.0,12.89801868]
[1641870960791,29.79646646,3112.1,3112.0,12.94475929]
[1641870960792,21.53804346,3112.1,3112.0,12.94475929]
[1641870960992,8.39219609,3112.1,3112.0,12.94475929]
[1641870961291,1.96818609,3112.1,3112.0,12.94475929]
[1641870961894,10.128,3113.1,3112.1,5.7]
[1641870962092,10.128,3113.1,3112.8,1.3268193]
[1641870962292,2.85511582,3113.0,3112.9,0.461]
[1641870962492,2.85511582,3113.0,3112.9,0.761]
[1641870963939,0.00511582,3113.0,3112.9,0.761]
[1641870964138,5.03081582,3113.1,3112.9,0.761]
[1641870964338,5.03081582,3113.1,3112.9,1.6713]
[1641870965443,5.03081582,3113.1,3112.9,2.47425]
[1641870965642,5.03081582,3113.1,3112.9,3.47425]
[1641870965840,5.03081582,3113.1,3112.9,2.6713]
[1641870966040,5.03081582,3113.1,3112.9,1.6713]
[1641870966241,5.03081582,3113.1,3113.0,3.65675467]
[1641870966492,5.03081582,3113.1,3113.0,4.41775467]
[1641870966693,5.03081582,3113.1,3113.0,3.28361444]
[1641870966890,5.03081582,3113.1,3113.0,3.29171831]
[1641870967089,5.03081582,3113.1,3113.0,1.76910387]
[1641870967294,5.03081582,3113.1,3113.0,2.65229387]
[1641870967490,5.03081582,3113.1,3113.0,6.20325201]
[1641870967893,4.2338,3113.6,3113.1,4.85]
[1641870968095,5.53102065,3113.9,3113.2,5.43609479]
[1641870968295,0.00284211,3113.5,3113.3,1.9055]
[1641870968492,5.53102065,3113.9,3113.5,3.35]
[1641870968691,5.53102065,3113.9,3113.7,1.09374791]
[1641870968892,2.36608961,3114.1,3113.7,1.09374791]
[1641870968893,1.1735,3114.2,3113.8,0.461]
[1641870969096,1.1735,3114.2,3113.8,0.761]
[1641870969292,0.00284212,3114.0,3113.8,0.84128]
[1641870969491,0.00284212,3114.0,3113.8,1.84128]
[1641870969693,0.0022737,3113.9,3113.8,1.84128]
[1641870969900,0.0022737,3113.9,3113.8,2.6439]
[1641870970336,0.0022737,3113.9,3113.8,1.84128]
[1641870970937,0.0022737,3113.9,3113.8,0.84128]
[1641870971238,0.0022737,3113.9,3113.8,1.77508]
[1641870971439,0.0022737,3113.9,3113.8,0.77508]
[1641870971637,0.0022737,3113.9,3113.8,5.28178238]
[1641870971838,0.0022737,3113.9,3113.8,0.7028434]
[1641870972038,0.0022737,3113.9,3113.8,1.7028434]
[1641870972338,0.0022737,3113.9,3113.8,0.7028434]
[1641870972541,0.0022737,3113.9,3113.8,1.7028434]
[1641870972740,0.0022737,3113.9,3113.8,0.7028434]
[1641870973738,0.7296737,3114.7,3113.8,0.7028434]
[1641870973989,0.6796737,3114.7,3113.8,0.7028434]
[1641870974190,0.00397896,3114.6,3113.8,0.7028434]
[1641870974589,0.00341054,3114.5,3113.8,0.7028434]
[1641870974991,0.00284211,3114.4,3113.8,0.7028434]
[1641870975390,0.6796737,3114.7,3113.8,0.7028434]
[1641870975391,0.00227369,3114.3,3113.8,0.7028434]
[1641870975792,0.6796737,3114.7,3113.8,0.7028434]
[1641870975793,0.00170527,3114.2,3113.8,0.7028434]
[1641870976193,0.00113684,3114.1,3113.8,0.7028434]
[1641870976792,0.00113684,3114.1,3114.0,0.00802829]
[1641870976994,0.00113684,3114.1,3114.0,0.46902829]
[1641870977192,0.00113684,3114.1,3114.0,0.76902829]
[1641870979041,0.00113684,3114.1,3114.0,1.57167829]
[1641870982287,0.00113684,3114.1,3114.0,1.65195829]
[1641870983491,0.00113684,3114.1,3114.0,2.65195829]
[1641870983990,0.00113684,3114.1,3114.0,0.76902829]
[1641870984190,0.00113684,3114.1,3114.0,1.76902829]
[1641870984392,0.00113684,3114.1,3114.0,0.76902829]
[1641870996703,0.00113684,3114.1,3114.0,0.46902829]
[1641870998095,0.00113684,3114.1,3114.0,0.76902829]
[1641871004386,0.00113684,3114.1,3114.0,0.84930829]
[1641871005590,0.00113684,3114.1,3114.0,0.76902829]
[1641871006591,0.00113684,3114.1,3114.0,0.84930829]
[1641871006991,0.00113684,3114.1,3114.0,0.76902829]
[1641871007192,1.4941039,3114.4,3114.0,0.76902829]
[1641871007491,0.00227369,3114.3,3114.1,0.3]
[1641871007752,0.00227369,3114.3,3114.1,0.761]
[1641871007949,0.00170527,3114.2,3114.1,0.761]
[1641871008748,0.00170527,3114.2,3114.1,0.461]
[1641871009754,0.00170527,3114.2,3114.1,0.761]
[1641871009950,2.30170527,3114.2,3114.1,0.761]
[1641871011253,5.03238517,3114.2,3114.1,0.761]
[1641871011488,2.73238517,3114.2,3114.1,0.761]
[1641871011689,0.00170527,3114.2,3114.1,0.761]
[1641871012088,0.00170527,3114.2,3114.1,0.76902074]
[1641871012289,2.73238517,3114.2,3114.1,0.76902074]
[1641871012688,2.73238517,3114.2,3114.1,0.46902074]
[1641871012887,2.73238517,3114.2,3114.1,0.76902074]
[1641871013090,0.00170527,3114.2,3114.1,0.76902074]
[1641871014892,3.45170527,3114.2,3114.1,0.76902074]
[1641871015347,4.81153742,3114.1,3113.4,0.08026]
[1641871015552,0.01245579,3113.7,3112.9,0.54126]
[1641871015750,0.01245579,3113.7,3113.5,0.0022737]
[1641871016953,5.78028,3113.6,3113.5,0.0022737]
[1641871017150,14.26242308,3113.6,3112.7,0.00682109]
[1641871017355,14.18214308,3113.6,3112.7,0.00682109]
[1641871017551,0.08029,3113.5,3112.7,0.00682109]
[1641871017751,1.26376624,3113.4,3112.7,0.00682109]
[1641871018354,1.26376624,3113.4,3112.4,0.00852636]
[1641871019098,2.7306799,3113.3,3112.4,0.00852636]
[1641871019900,3.95458178,3113.2,3112.4,0.00852636]
[1641871020496,0.31581245,3113.0,3112.3,0.00909478]
[1641871020695,0.31581245,3113.0,3112.3,0.08940478]
[1641871021197,0.31581245,3113.0,3112.4,0.00852636]
[1641871025352,4.2,3112.9,3111.8,6.09]
[1641871025550,4.20284212,3112.9,3111.9,1.08032]
[1641871025754,0.0022737,3112.8,3112.0,0.461]
[1641871025952,0.0022737,3112.8,3112.0,0.761]
[1641871026151,0.00170527,3112.7,3112.1,0.00170527]
[1641871026396,0.00170527,3112.7,3112.1,0.46270527]
[1641871026590,0.00113685,3112.6,3112.1,0.46270527]
[1641871026793,0.00113685,3112.6,3112.2,0.00113684]
[1641871026992,0.00284212,3112.9,3112.2,0.00113684]
[1641871027193,2.73485696,3112.9,3112.2,0.00113684]
[1641871027393,0.0022737,3112.8,3112.2,0.00113684]
[1641871027793,0.00170527,3112.7,3112.2,0.00113684]
[1641871028195,0.00113685,3112.6,3112.2,0.00113684]
[1641871028395,0.00113685,3112.6,3112.1,0.00170527]
[1641871028596,0.00170527,3112.7,3112.1,0.00170527]
[1641871028794,0.08202527,3112.7,3112.1,0.00170527]
[1641871028994,1.41957664,3112.4,3112.1,0.00170527]
[1641871029696,0.01427451,3112.3,3112.1,0.00170527]
[1641871029897,0.01367058,3112.3,3112.1,0.00170527]
[1641871030149,0.01367058,3112.3,3111.7,0.461]
[1641871030150,3.79087934,3112.3,3111.8,0.00341054]
[1641871030350,1.41957664,3112.4,3111.8,0.00341054]
[1641871031554,0.08032,3112.7,3111.8,0.00341054]
[1641871031752,4.3104,3112.8,3111.8,0.00341054]
[1641871031954,0.00113685,3112.6,3111.8,0.30341054]
[1641871032254,0.00170527,3112.7,3111.8,0.25341054]
[1641871032649,1.49794885,3112.6,3111.8,0.00341054]
[1641871033049,1.496812,3112.6,3111.8,0.00341054]
[1641871033253,1.496812,3112.6,3111.9,0.08032]
[1641871033449,0.00170527,3112.7,3111.9,0.08032]
[1641871033650,0.00170527,3112.7,3112.0,0.00227369]
[1641871033891,0.00113685,3112.6,3112.0,0.00227369]
[1641871034293,0.00170527,3112.7,3112.1,0.461]
[1641871034498,0.00170527,3112.7,3112.3,0.0045226]
[1641871034691,0.00113685,3112.6,3112.4,0.54132]
[1641871034892,0.00113685,3112.6,3112.4,0.84132]
[1641871035093,0.0022737,3112.8,3112.4,1.14132]
[1641871035591,1.2133,3113.2,3112.4,1.14132]
[1641871035592,0.00170527,3112.7,3112.4,1.14132]
[1641871035993,1.2133,3113.2,3112.4,1.94439]
[1641871035994,0.00113685,3112.6,3112.4,1.94439]
[1641871036392,0.00397897,3113.1,3112.4,1.94439]
[1641871036793,0.00341055,3113.0,3112.4,1.94439]
[1641871037193,0.00284212,3112.9,3112.4,1.94439]
[1641871037641,0.0022737,3112.8,3112.4,1.14132]
[1641871038042,0.00170527,3112.7,3112.4,1.14132]
[1641871038241,1.64640285,3113.2,3112.4,1.14132]
[1641871038441,1.64640285,3113.2,3112.5,0.00113684]
[1641871038743,0.38734132,3113.1,3112.6,0.461]
[1641871038941,0.38734132,3113.1,3112.6,0.761]
[1641871039241,0.00170528,3113.0,3112.6,0.761]
[1641871039647,0.00113685,3112.9,3112.6,0.761]
[1641871040043,0.00170528,3113.0,3112.6,0.761]
[1641871040441,0.00113685,3112.9,3112.6,0.761]
[1641871040843,0.00170528,3113.0,3112.6,0.761]
[1641871041241,0.00113685,3112.9,3112.6,0.761]
[1641871041689,0.00170528,3113.0,3112.6,0.761]
[1641871041889,0.00170528,3113.0,3112.6,1.061]
[1641871042090,0.00113685,3112.9,3112.6,0.761]
[1641871042294,0.00113685,3112.9,3112.6,1.14131]
[1641871042490,0.00170528,3113.0,3112.6,1.14131]
[1641871042891,0.00113685,3112.9,3112.6,0.84131]
[1641871043091,0.00113685,3112.9,3112.6,0.761]
[1641871043291,0.00170528,3113.0,3112.6,0.761]
[1641871043691,0.00113685,3112.9,3112.6,0.761]
[1641871044091,0.00170528,3113.0,3112.6,0.761]
[1641871044590,0.00113685,3112.9,3112.6,0.761]
[1641871044797,0.00113685,3112.9,3112.6,0.84131]
[1641871044994,0.00170528,3113.0,3112.6,0.84131]
[1641871045443,0.00113685,3112.9,3112.6,0.84131]
[1641871045842,0.00170528,3113.0,3112.6,0.84131]
[1641871046243,0.38506762,3113.1,3112.6,0.84131]
[1641871046244,0.00113685,3112.9,3112.6,0.84131]
[1641871046643,0.00170528,3113.0,3112.6,0.84131]
[1641871047045,0.00113685,3112.9,3112.6,0.84131]
[1641871047449,0.00170528,3113.0,3112.6,0.84131]
[1641871047845,0.00113685,3112.9,3112.6,0.84131]
[1641871048246,0.00170528,3113.0,3112.6,0.84131]
[1641871048647,0.00113685,3112.9,3112.6,0.84131]
[1641871048903,0.00113685,3112.9,3112.6,0.761]
[1641871049094,0.00170528,3113.0,3112.6,0.761]
[1641871049493,0.00113685,3112.9,3112.6,0.761]
[1641871049693,0.00113685,3112.9,3112.6,0.84131]
[1641871049893,0.00170528,3113.0,3112.6,0.84131]
[1641871050392,0.38506762,3113.1,3112.6,0.84131]
[1641871050393,0.00113685,3112.9,3112.6,0.84131]
[1641871050594,0.00113685,3112.9,3112.6,0.761]
[1641871050793,0.00170528,3113.0,3112.6,0.761]
[1641871051192,0.00113685,3112.9,3112.6,0.761]
[1641871051595,0.00170528,3113.0,3112.6,0.761]
[1641871051993,0.00113685,3112.9,3112.6,0.761]
[1641871052396,0.00170528,3113.0,3112.7,0.88329]
[1641871052653,0.00170528,3113.0,3112.8,0.461]
[1641871052849,0.00113685,3112.9,3112.8,0.761]
[1641871053448,0.00113685,3112.9,3112.8,4.761]
[1641871053650,0.00113685,3112.9,3112.8,5.761]
[1641871053849,0.00113685,3112.9,3112.8,7.08488171]
[1641871055149,0.00113685,3112.9,3112.8,3.08488171]
[1641871057595,0.00113685,3112.9,3112.8,1.761]
[1641871057799,0.00113685,3112.9,3112.8,0.761]
[1641871058195,0.00113685,3112.9,3112.8,1.061]
[1641871058999,0.00113685,3112.9,3112.8,0.761]
[1641871059699,0.00113685,3112.9,3112.8,1.061]
[1641871061449,0.00113685,3112.9,3112.8,0.761]
[1641871064091,0.00113685,3112.9,3112.5,0.80428684]
[1641871064292,0.04161501,3112.8,3112.5,0.00113684]
[1641871064690,0.04161501,3112.8,3112.2,0.00284211]
[1641871064893,0.12192501,3112.8,3112.2,0.00284211]
[1641871065090,1.64484014,3112.8,3111.9,0.00454738]
[1641871065290,1.56453014,3112.8,3111.9,0.00454738]
[1641871065689,2.73150162,3112.7,3111.9,0.00454738]
[1641871066892,6.52474771,3112.7,3111.9,0.00454738]
[1641871067292,7.76334771,3112.7,3111.9,0.00454738]
[1641871067492,2.73150162,3112.6,3111.8,0.00511581]
[1641871067748,3.81425661,3112.5,3111.8,0.00511581]
[1641871068347,3.81425661,3112.5,3111.8,0.80844581]
[1641871068551,3.81425661,3112.5,3111.8,1.10844581]
[1641871068749,2.73150162,3112.4,3111.9,0.00454738]
[1641871072809,2.73150162,3112.6,3111.9,0.00454738]
[1641871073309,3.78848346,3112.5,3111.9,0.00454738]
[1641871073711,2.73150162,3112.6,3111.9,0.00454738]
[1641871074910,2.73150162,3112.6,3112.0,0.08032]
[1641871075352,2.73150162,3112.6,3112.1,0.00341054]
[1641871075753,4.18085431,3112.6,3112.1,0.00341054]
[1641871075952,4.18085431,3112.6,3112.0,0.00397896]
[1641871076554,2.73150162,3112.5,3111.9,0.00454738]
[1641871077561,6.53368116,3112.5,3111.9,0.00454738]
[1641871077955,2.73150162,3112.5,3111.9,0.00454738]
[1641871079695,2.73150162,3112.5,3111.8,0.85787738]
[1641871079995,0.00284211,3112.4,3111.8,1.10333]
[1641871080194,0.00284211,3112.4,3111.8,1.56433]
[1641871080395,0.00227369,3112.3,3111.8,1.56433]
[1641871080798,0.00170527,3112.2,3111.8,1.56433]
[1641871081201,0.00113684,3112.1,3111.8,1.86433]
[1641871081500,0.00341054,3112.5,3111.8,1.86433]
[1641871081896,0.00284211,3112.4,3111.8,1.86433]
[1641871082098,0.00284211,3112.4,3111.8,1.26433]
[1641871082296,0.00227369,3112.3,3111.8,1.26433]
[1641871082750,2.73150162,3112.6,3111.8,1.26433]
[1641871082751,0.00170527,3112.2,3111.8,1.26433]
[1641871083046,0.00113684,3112.1,3111.8,1.26433]
[1641871083251,0.00113684,3112.1,3111.9,0.08032]
[1641871083448,2.73150162,3112.6,3112.1,0.02582631]
[1641871083647,2.73150162,3112.6,3112.2,0.54132]
[1641871083849,0.0022737,3112.5,3112.4,0.80314]
[1641871084051,0.0022737,3112.5,3112.4,1.56414]
[1641871084252,0.00284212,3112.6,3112.4,1.56414]
[1641871084649,0.00568424,3113.1,3112.4,1.56414]
[1641871085151,0.00511582,3113.0,3112.4,1.56414]
[1641871085549,0.00454739,3112.9,3112.4,1.56414]
[1641871085749,0.00454739,3112.9,3112.4,0.461]
[1641871085951,0.00397897,3112.8,3112.4,0.461]
[1641871086248,0.00341054,3112.7,3112.4,0.461]
[1641871086706,0.00284212,3112.6,3112.4,0.461]
[1641871087101,0.00341054,3112.7,3112.4,0.461]
[1641871087301,0.00341054,3112.7,3112.4,0.761]
[1641871087501,0.00284212,3112.6,3112.4,1.56419]
[1641871087904,2.73193428,3112.7,3112.4,1.56419]
[1641871088302,0.00284212,3112.6,3112.4,1.26419]
[1641871088502,0.00284212,3112.6,3112.4,0.461]
[1641871088802,1.40263239,3113.0,3112.4,0.761]
[1641871089206,0.00454739,3112.9,3112.4,0.761]
[1641871089403,2.73648167,3112.9,3112.4,0.461]
[1641871089603,0.00397897,3112.8,3112.4,0.461]
[1641871090002,0.00341054,3112.7,3112.4,0.761]
[1641871090252,0.00341054,3112.7,3112.4,0.461]
[1641871090550,0.00284212,3112.6,3112.4,0.461]
[1641871090747,0.00284212,3112.6,3112.4,0.761]
[1641871090948,0.00341054,3112.7,3112.4,0.761]
[1641871091347,0.00284212,3112.6,3112.4,0.761]
[1641871091752,0.00397897,3112.8,3112.4,0.761]
[1641871092147,0.00341054,3112.7,3112.4,0.761]
[1641871092548,0.00284212,3112.6,3112.4,1.8640943]
[1641871092748,0.00284212,3112.6,3112.5,1.42174524]
[1641871092948,1.1365,3113.4,3112.5,1.42174524]
[1641871092949,0.00397897,3112.8,3112.5,1.88274524]
[1641871093151,0.00284212,3112.6,3112.5,2.88274524]
[1641871093448,0.00284212,3112.6,3112.5,1.461]
[1641871093647,0.00284212,3112.6,3112.5,0.461]
[1641871093893,0.00284212,3112.6,3112.5,1.461]
[1641871094494,0.00284212,3112.6,3112.5,0.461]
[1641871094694,0.00284212,3112.6,3112.5,1.461]
[1641871094895,0.00284212,3112.6,3112.5,1.54131]
[1641871100449,2.7317516,3113.3,3112.5,1.54131]
[1641871100650,2.7317516,3113.3,3112.9,0.80303]
[1641871100850,0.00341054,3113.2,3112.9,1.10303]
[1641871101149,0.00284212,3113.1,3112.9,1.10303]
[1641871101609,0.0022737,3113.0,3112.9,1.10303]
[1641871101812,0.0022737,3113.0,3112.9,1.56403]
[1641871104816,0.0022737,3113.0,3112.9,0.461]
[1641871105013,0.0022737,3113.0,3112.9,0.761]
[1641871105645,0.0022737,3113.0,3112.9,0.461]
[1641871105846,0.0022737,3113.0,3112.9,0.761]
[1641871106448,0.0022737,3113.0,3112.9,5.49866258]
[1641871106650,2.7317516,3113.3,3112.9,6.52707793]
[1641871106851,2.7317516,3113.3,3113.0,0.08029]
[1641871107047,0.00113684,3113.2,3113.1,0.461]
[1641871107351,3.8336,3114.4,3113.2,1.40992319]
[1641871107352,5.24197065,3114.3,3113.2,1.40992319]
[1641871107547,5.24197065,3114.3,3113.6,0.80287]
[1641871107748,5.24197065,3114.3,3113.7,0.461]
[1641871107947,5.24197065,3114.3,3113.7,0.761]
[1641871108350,2.73111027,3114.2,3113.7,0.761]
[1641871108750,0.00511581,3114.1,3113.7,0.761]
[1641871109000,0.00511581,3114.1,3113.7,1.061]
[1641871109198,0.00454739,3114.0,3113.7,1.061]
[1641871109600,2.73111027,3114.2,3113.7,1.061]
[1641871109601,0.00397897,3113.9,3113.7,1.061]
[1641871110101,0.00341054,3113.8,3113.7,1.061]
[1641871111302,0.00341054,3113.8,3113.7,0.761]
[1641871111900,2.65341054,3113.8,3113.7,0.761]
[1641871112101,2.65341054,3113.8,3113.7,0.461]
[1641871112501,2.65341054,3113.8,3113.2,0.461]
[1641871112763,1.3140603,3113.6,3113.2,0.461]
[1641871113159,1.3140603,3113.6,3113.2,1.461]
[1641871113160,0.00170527,3113.5,3113.2,1.461]
[1641871113358,0.00170527,3113.5,3112.5,3.03336003]
[1641871113359,4.00151149,3113.5,3112.8,1.54128]
[1641871113557,4.00151149,3113.5,3112.8,1.3]
[1641871113558,0.01360027,3113.4,3112.8,1.3]
[1641871113756,0.01360027,3113.4,3112.9,0.00170527]
[1641871114158,2.74510528,3113.4,3112.6,0.00341054]
[1641871114378,3.68301889,3113.3,3112.6,0.00341054]
[1641871114562,0.01122285,3113.2,3112.6,0.00341054]
[1641871114858,3.68301889,3113.3,3112.4,0.00454739]
[1641871115263,0.00113685,3113.4,3112.4,0.00454739]
[1641871116600,2.73279442,3113.4,3112.4,0.00454739]
[1641871116802,2.81310442,3113.4,3112.4,0.80770739]
[1641871117101,2.81310442,3113.4,3112.5,0.00397896]
[1641871117302,2.73279442,3113.4,3112.5,0.00397896]
[1641871117701,2.73279442,3113.4,3112.6,2.06709]
[1641871117905,0.00113685,3113.4,3112.6,2.36709]
[1641871118103,0.00113685,3113.4,3112.7,0.00284212]
[1641871118301,0.00113685,3113.4,3112.7,0.46384212]